[Event "Titled Tuesday Blitz June 28 Early 2022"]
[White "Bommini, Mounika Akshaya"]
[Black "Soham Kamotra"]
[WhiteFideId "25019872"]
[BlackFideId "46647490"]
[WhiteElo "1680"]
[BlackElo "2082"]
[Result "0-1"]
[Round "11"]
[TimeControl "180+1"]
[Date "2022.06.28"]
[WhiteClock "0:00:07"]
[BlackClock "0:00:29"]

1. d4 {[%clk 0:02:56]}  Nf6 {[%clk 0:02:59]} 2. c4 {[%clk 0:02:55]}  g6 {[%clk 0:03:00]} 3. Nc3 {[%clk 0:02:55]}  d5 {[%clk 0:03:01]} 4. cxd5 {[%clk 0:02:54]}  Nxd5 {[%clk 0:03:01]} 5. Bd2 {[%clk 0:02:55]}  Bg7 {[%clk 0:03:01]} 6. e4 {[%clk 0:02:55]}  Nxc3 {[%clk 0:03:01]} 7. Bxc3 {[%clk 0:02:55]}  O-O {[%clk 0:02:58]} 8. h4 {[%clk 0:02:51]}  c5 {[%clk 0:02:58]} 9. d5 {[%clk 0:02:51]}  Bxc3+ {[%clk 0:02:57]} 10. bxc3 {[%clk 0:02:51]}  Qd6 {[%clk 0:02:57]} 11. Nf3 {[%clk 0:02:44]}  Bg4 {[%clk 0:02:58]} 12. Be2 {[%clk 0:02:41]}  Nd7 {[%clk 0:02:58]} 13. Qd2 {[%clk 0:02:39]}  f5 {[%clk 0:02:41]} 14. exf5 {[%clk 0:02:19]}  Rxf5 {[%clk 0:02:41]} 15. c4 {[%clk 0:02:17]}  Bxf3 {[%clk 0:02:37]} 16. gxf3 {[%clk 0:02:10]}  Qe5 {[%clk 0:02:23]} 17. Rb1 {[%clk 0:02:04]}  b6 {[%clk 0:02:03]} 18. Kd1 {[%clk 0:01:25]}  Nf6 {[%clk 0:01:38]} 19. Re1 {[%clk 0:01:23]}  Qd6 {[%clk 0:01:27]} 20. Kc1 {[%clk 0:01:16]}  Rf4 {[%clk 0:01:25]} 21. Qe3 {[%clk 0:01:09]}  Rxh4 {[%clk 0:01:22]} 22. Bf1 {[%clk 0:01:04]}  Re8 {[%clk 0:01:19]} 23. Rb2 {[%clk 0:01:02]}  Rd4 {[%clk 0:01:11]} 24. Bd3 {[%clk 0:00:55]}  e6 {[%clk 0:01:00]} 25. Bxg6 {[%clk 0:00:20]}  hxg6 {[%clk 0:00:55]} 26. Rg1 {[%clk 0:00:18]}  Kg7 {[%clk 0:00:51]} 27. Kb1 {[%clk 0:00:15]}  Qf4 {[%clk 0:00:46]} 28. Qe2 {[%clk 0:00:12]}  exd5 {[%clk 0:00:44]} 29. Qc2 {[%clk 0:00:12]}  g5 {[%clk 0:00:32]} 30. cxd5 {[%clk 0:00:12]}  Rxd5 {[%clk 0:00:30]} 31. Rb3 {[%clk 0:00:12]}  Qf5 {[%clk 0:00:28]} 32. Qxf5 {[%clk 0:00:06]}  Rxf5 {[%clk 0:00:29]} 33. Rd3 {[%clk 0:00:07]}  Re7 {[%clk 0:00:29]} 0-1


[Site "https://www.chess.com"]

[Event "Titled Tuesday Blitz June 28 Early 2022"]
[White "Dushyant Sharma"]
[Black "Gracia Alvarez, Gerardo Antonio"]
[WhiteFideId "25065130"]
[BlackFideId "5109124"]
[WhiteElo "2105"]
[BlackElo "2139"]
[Result "1-0"]
[Round "11"]
[TimeControl "180+1"]
[Date "2022.06.28"]
[WhiteClock "0:01:14"]
[BlackClock "0:00:11"]

1. e4 {[%clk 0:03:00]}  c5 {[%clk 0:03:00]} 2. Nf3 {[%clk 0:02:58]}  Nc6 {[%clk 0:03:00]} 3. d4 {[%clk 0:02:59]}  cxd4 {[%clk 0:03:01]} 4. Nxd4 {[%clk 0:03:00]}  Nf6 {[%clk 0:03:01]} 5. Nc3 {[%clk 0:03:00]}  e5 {[%clk 0:03:01]} 6. Ndb5 {[%clk 0:03:00]}  h6 {[%clk 0:03:02]} 7. Nd6+ {[%clk 0:03:00]}  Bxd6 {[%clk 0:03:02]} 8. Qxd6 {[%clk 0:03:00]}  Qe7 {[%clk 0:03:03]} 9. Qd1 {[%clk 0:03:00]}  O-O {[%clk 0:03:02]} 10. Bd3 {[%clk 0:03:01]}  Rd8 {[%clk 0:03:00]} 11. O-O {[%clk 0:03:01]}  d6 {[%clk 0:02:58]} 12. f4 {[%clk 0:03:00]}  exf4 {[%clk 0:02:54]} 13. Bxf4 {[%clk 0:03:00]}  d5 {[%clk 0:02:43]} 14. exd5 {[%clk 0:03:00]}  Qc5+ {[%clk 0:02:40]} 15. Kh1 {[%clk 0:03:00]}  Nxd5 {[%clk 0:02:40]} 16. Nxd5 {[%clk 0:03:00]}  Qxd5 {[%clk 0:02:39]} 17. Qe2 {[%clk 0:02:54]}  Be6 {[%clk 0:02:38]} 18. Rae1 {[%clk 0:02:53]}  Re8 {[%clk 0:02:00]} 19. Qf2 {[%clk 0:02:49]}  Bf5 {[%clk 0:01:43]} 20. Rd1 {[%clk 0:02:29]}  Bxd3 {[%clk 0:01:34]} 21. Rxd3 {[%clk 0:02:30]}  Qxa2 {[%clk 0:01:31]} 22. b3 {[%clk 0:02:22]}  Re7 {[%clk 0:00:55]} 23. Rg3 {[%clk 0:02:16]}  Nd8 {[%clk 0:00:11]} 24. Bxh6 {[%clk 0:01:56]}  Ne6 {[%clk 0:00:11]} 25. Qf6 {[%clk 0:01:28]}  Qa6 {[%clk 0:00:11]} 26. Rxg7+ {[%clk 0:01:14]} 1-0


[Site "https://www.chess.com"]

[Event "Titled Tuesday Blitz June 28 Early 2022"]
[White "Fecker, Noah"]
[Black "Mekhane, Adam"]
[WhiteFideId "1334263"]
[BlackFideId "36050601"]
[WhiteElo "2312"]
[BlackElo "2002"]
[Result "1-0"]
[Round "11"]
[TimeControl "180+1"]
[Date "2022.06.28"]
[WhiteClock "0:01:42"]
[BlackClock "0:00:55"]

1. Nf3 {[%clk 0:03:00]}  Nf6 {[%clk 0:02:59]} 2. c4 {[%clk 0:02:59]}  g6 {[%clk 0:03:00]} 3. Nc3 {[%clk 0:02:59]}  Bg7 {[%clk 0:03:00]} 4. g3 {[%clk 0:03:00]}  O-O {[%clk 0:03:00]} 5. Bg2 {[%clk 0:03:01]}  d6 {[%clk 0:03:00]} 6. O-O {[%clk 0:03:01]}  e5 {[%clk 0:03:00]} 7. d3 {[%clk 0:02:59]}  Nc6 {[%clk 0:02:57]} 8. Rb1 {[%clk 0:03:00]}  a5 {[%clk 0:02:52]} 9. a3 {[%clk 0:02:56]}  Be6 {[%clk 0:02:45]} 10. b4 {[%clk 0:02:55]}  axb4 {[%clk 0:02:25]} 11. axb4 {[%clk 0:02:56]}  Qc8 {[%clk 0:02:25]} 12. Re1 {[%clk 0:02:54]}  Nd4 {[%clk 0:02:18]} 13. Nxd4 {[%clk 0:02:42]}  exd4 {[%clk 0:02:18]} 14. Nb5 {[%clk 0:02:43]}  Ne8 {[%clk 0:02:09]} 15. Bb2 {[%clk 0:02:39]}  c5 {[%clk 0:02:05]} 16. Ra1 {[%clk 0:02:33]}  Bd7 {[%clk 0:01:57]} 17. bxc5 {[%clk 0:02:14]}  dxc5 {[%clk 0:01:55]} 18. Qb3 {[%clk 0:02:14]}  Bc6 {[%clk 0:01:51]} 19. Na7 {[%clk 0:02:09]}  Qc7 {[%clk 0:01:35]} 20. Nxc6 {[%clk 0:02:08]}  Rxa1 {[%clk 0:01:35]} 21. Rxa1 {[%clk 0:02:07]}  bxc6 {[%clk 0:01:36]} 22. Ba3 {[%clk 0:02:03]}  Nd6 {[%clk 0:01:26]} 23. Bxc5 {[%clk 0:02:00]}  Re8 {[%clk 0:01:26]} 24. Bf3 {[%clk 0:01:54]}  Nf5 {[%clk 0:01:23]} 25. Ra7 {[%clk 0:01:52]}  Qe5 {[%clk 0:01:20]} 26. Qb7 {[%clk 0:01:50]}  Nh6 {[%clk 0:01:07]} 27. Qxc6 {[%clk 0:01:48]}  Qf5 {[%clk 0:00:55]} 28. Qxe8+ {[%clk 0:01:42]} 1-0


[Site "https://www.chess.com"]

[Event "Titled Tuesday Blitz June 28 Early 2022"]
[White "Gatterer, Florian"]
[Black "Richter, Nils"]
[WhiteFideId "811688"]
[BlackFideId "12990809"]
[WhiteElo "2218"]
[BlackElo "2311"]
[Result "1-0"]
[Round "11"]
[TimeControl "180+1"]
[Date "2022.06.28"]
[WhiteClock "0:00:53"]
[BlackClock "0:01:10"]

1. d4 {[%clk 0:03:00]}  Nf6 {[%clk 0:02:59]} 2. Nf3 {[%clk 0:02:59]}  c5 {[%clk 0:02:58]} 3. d5 {[%clk 0:02:58]}  b5 {[%clk 0:02:58]} 4. e4 {[%clk 0:02:56]}  Nxe4 {[%clk 0:02:57]} 5. Bd3 {[%clk 0:02:55]}  Nd6 {[%clk 0:02:53]} 6. Bf4 {[%clk 0:02:55]}  g6 {[%clk 0:02:47]} 7. O-O {[%clk 0:02:53]}  Bg7 {[%clk 0:02:47]} 8. Bxd6 {[%clk 0:02:52]}  exd6 {[%clk 0:02:46]} 9. Re1+ {[%clk 0:02:50]}  Kf8 {[%clk 0:02:45]} 10. c3 {[%clk 0:02:49]}  c4 {[%clk 0:02:45]} 11. Bf1 {[%clk 0:02:34]}  Na6 {[%clk 0:02:31]} 12. a4 {[%clk 0:02:33]}  bxa4 {[%clk 0:02:22]} 13. Rxa4 {[%clk 0:02:25]}  Nc5 {[%clk 0:02:20]} 14. Ra2 {[%clk 0:02:19]}  Ba6 {[%clk 0:02:13]} 15. Nbd2 {[%clk 0:02:18]}  Bf6 {[%clk 0:02:01]} 16. Bxc4 {[%clk 0:02:05]}  Bxc4 {[%clk 0:01:53]} 17. Nxc4 {[%clk 0:02:06]}  Kg7 {[%clk 0:01:51]} 18. Nxd6 {[%clk 0:02:03]}  Qc7 {[%clk 0:01:32]} 19. Ne4 {[%clk 0:01:55]}  Qf4 {[%clk 0:01:17]} 20. Nxc5 {[%clk 0:01:48]}  Qc4 {[%clk 0:01:14]} 21. Nxd7 {[%clk 0:01:21]}  Qxa2 {[%clk 0:01:12]} 22. Nxf6 {[%clk 0:01:20]}  Kxf6 {[%clk 0:01:12]} 23. Qd4+ {[%clk 0:00:59]}  Kf5 {[%clk 0:01:10]} 24. Qe5+ {[%clk 0:00:56]}  Kg4 {[%clk 0:01:10]} 25. h3# {[%clk 0:00:53]} 1-0


[Site "https://www.chess.com"]

[Event "Titled Tuesday Blitz June 28 Early 2022"]
[White "Gubajdullin, Alexei"]
[Black "Ismayil, Malak"]
[WhiteFideId "4141202"]
[BlackFideId "13412604"]
[WhiteElo "2280"]
[BlackElo "1879"]
[Result "1-0"]
[Round "11"]
[TimeControl "180+1"]
[Date "2022.06.28"]
[WhiteClock "0:02:03"]
[BlackClock "0:01:29"]

1. c4 {[%clk 0:03:00]}  e5 {[%clk 0:02:58]} 2. Nc3 {[%clk 0:03:00]}  Nf6 {[%clk 0:02:56]} 3. Nf3 {[%clk 0:03:01]}  Nc6 {[%clk 0:02:56]} 4. e3 {[%clk 0:03:01]}  Bb4 {[%clk 0:02:46]} 5. Qc2 {[%clk 0:03:01]}  O-O {[%clk 0:02:44]} 6. Bd3 {[%clk 0:03:00]}  h6 {[%clk 0:02:43]} 7. Nd5 {[%clk 0:02:58]}  Be7 {[%clk 0:02:41]} 8. Nxf6+ {[%clk 0:02:51]}  Bxf6 {[%clk 0:02:41]} 9. a3 {[%clk 0:02:51]}  d6 {[%clk 0:02:37]} 10. h4 {[%clk 0:02:50]}  Bg4 {[%clk 0:02:36]} 11. Be4 {[%clk 0:02:50]}  Be7 {[%clk 0:02:34]} 12. b4 {[%clk 0:02:46]}  Rb8 {[%clk 0:02:25]} 13. Bb2 {[%clk 0:02:46]}  f5 {[%clk 0:02:22]} 14. Bd5+ {[%clk 0:02:45]}  Kh8 {[%clk 0:02:22]} 15. b5 {[%clk 0:02:44]}  Na5 {[%clk 0:02:22]} 16. Bc3 {[%clk 0:02:34]}  c6 {[%clk 0:02:18]} 17. Bxa5 {[%clk 0:02:32]}  Qxa5 {[%clk 0:02:17]} 18. bxc6 {[%clk 0:02:32]}  bxc6 {[%clk 0:02:16]} 19. Bxc6 {[%clk 0:02:32]}  Rbc8 {[%clk 0:02:12]} 20. Bd7 {[%clk 0:02:17]}  Rc7 {[%clk 0:02:11]} 21. Be6 {[%clk 0:02:17]}  Rf6 {[%clk 0:02:09]} 22. Ng5 {[%clk 0:02:17]}  Rg6 {[%clk 0:01:58]} 23. Bxf5 {[%clk 0:02:14]}  Rxc4 {[%clk 0:01:46]} 24. Qxc4 {[%clk 0:02:05]}  Bxf5 {[%clk 0:01:46]} 25. Qf7 {[%clk 0:02:04]}  Qd8 {[%clk 0:01:29]} 26. Qxf5 {[%clk 0:02:03]} 1-0


[Site "https://www.chess.com"]

[Event "Titled Tuesday Blitz June 28 Early 2022"]
[White "Gueci, Tea"]
[Black "Dobre, Claudiu-Cristian"]
[WhiteFideId "872342"]
[BlackFideId "1211854"]
[WhiteElo "2142"]
[BlackElo "2207"]
[Result "1-0"]
[Round "11"]
[TimeControl "180+1"]
[Date "2022.06.28"]
[WhiteClock "0:01:20"]
[BlackClock "0:00:08"]

1. e4 {[%clk 0:03:00]}  Nc6 {[%clk 0:03:00]} 2. Nf3 {[%clk 0:03:00]}  d6 {[%clk 0:02:59]} 3. d4 {[%clk 0:02:59]}  Nf6 {[%clk 0:03:00]} 4. Nc3 {[%clk 0:02:58]}  Bg4 {[%clk 0:02:59]} 5. Be3 {[%clk 0:02:57]}  e6 {[%clk 0:02:59]} 6. h3 {[%clk 0:02:56]}  Bh5 {[%clk 0:02:58]} 7. Be2 {[%clk 0:02:56]}  d5 {[%clk 0:02:58]} 8. e5 {[%clk 0:02:52]}  Ne4 {[%clk 0:02:50]} 9. Nxe4 {[%clk 0:02:46]}  dxe4 {[%clk 0:02:50]} 10. Ng1 {[%clk 0:02:43]}  Bg6 {[%clk 0:02:44]} 11. Qd2 {[%clk 0:02:42]}  Bb4 {[%clk 0:02:40]} 12. c3 {[%clk 0:02:42]}  Be7 {[%clk 0:02:39]} 13. Bd1 {[%clk 0:02:36]}  h5 {[%clk 0:02:23]} 14. Bc2 {[%clk 0:02:36]}  Qd7 {[%clk 0:02:22]} 15. Ne2 {[%clk 0:02:35]}  h4 {[%clk 0:02:22]} 16. Nf4 {[%clk 0:02:27]}  Bf5 {[%clk 0:02:20]} 17. O-O-O {[%clk 0:02:20]}  O-O-O {[%clk 0:02:19]} 18. Qe2 {[%clk 0:02:10]}  g5 {[%clk 0:01:52]} 19. Nh5 {[%clk 0:02:10]}  Bg6 {[%clk 0:01:31]} 20. g4 {[%clk 0:02:08]}  Bxh5 {[%clk 0:01:18]} 21. gxh5 {[%clk 0:02:09]}  f5 {[%clk 0:01:09]} 22. exf6 {[%clk 0:02:08]}  Bxf6 {[%clk 0:01:09]} 23. Bxe4 {[%clk 0:02:07]}  Ne7 {[%clk 0:01:04]} 24. Qf3 {[%clk 0:02:00]}  Rdf8 {[%clk 0:00:20]} 25. Bxb7+ {[%clk 0:01:50]}  Kb8 {[%clk 0:00:20]} 26. Ba6 {[%clk 0:01:48]}  Nd5 {[%clk 0:00:20]} 27. Qe2 {[%clk 0:01:45]}  Qa4 {[%clk 0:00:20]} 28. Kb1 {[%clk 0:01:39]}  Ka8 {[%clk 0:00:17]} 29. Bb5 {[%clk 0:01:39]}  Qa5 {[%clk 0:00:15]} 30. Bd2 {[%clk 0:01:30]}  Qb6 {[%clk 0:00:15]} 31. c4 {[%clk 0:01:27]}  Bxd4 {[%clk 0:00:12]} 32. cxd5 {[%clk 0:01:25]}  exd5 {[%clk 0:00:12]} 33. Be3 {[%clk 0:01:22]}  Bxe3 {[%clk 0:00:10]} 34. fxe3 {[%clk 0:01:22]}  c6 {[%clk 0:00:11]} 35. Ba4 {[%clk 0:01:21]}  Rb8 {[%clk 0:00:09]} 36. Rc1 {[%clk 0:01:20]}  Rhe8 {[%clk 0:00:08]} 37. Bxc6+ {[%clk 0:01:20]} 1-0


[Site "https://www.chess.com"]

[Event "Titled Tuesday Blitz June 28 Early 2022"]
[White "Gundam, Rohit"]
[Black "Blokhin, Sofia"]
[WhiteFideId "75002809"]
[BlackFideId "4508190"]
[WhiteElo "2343"]
[BlackElo "1760"]
[Result "1-0"]
[Round "11"]
[TimeControl "180+1"]
[Date "2022.06.28"]
[WhiteClock "0:02:20"]
[BlackClock "0:00:09"]

1. d4 {[%clk 0:03:00]}  f5 {[%clk 0:02:59]} 2. Nc3 {[%clk 0:03:00]}  e6 {[%clk 0:02:59]} 3. e4 {[%clk 0:03:00]}  fxe4 {[%clk 0:02:54]} 4. Nxe4 {[%clk 0:03:01]}  Nf6 {[%clk 0:02:53]} 5. Bg5 {[%clk 0:03:01]}  Be7 {[%clk 0:02:50]} 6. Bxf6 {[%clk 0:03:01]}  Bxf6 {[%clk 0:02:50]} 7. Qh5+ {[%clk 0:03:00]}  g6 {[%clk 0:02:48]} 8. Qh6 {[%clk 0:02:55]}  d5 {[%clk 0:02:42]} 9. Nxf6+ {[%clk 0:02:55]}  Qxf6 {[%clk 0:02:42]} 10. Nf3 {[%clk 0:02:55]}  Nc6 {[%clk 0:02:35]} 11. O-O-O {[%clk 0:02:56]}  Bd7 {[%clk 0:02:31]} 12. Bb5 {[%clk 0:02:56]}  O-O-O {[%clk 0:02:28]} 13. Bxc6 {[%clk 0:02:55]}  Bxc6 {[%clk 0:02:26]} 14. Qg5 {[%clk 0:02:52]}  Qf8 {[%clk 0:02:05]} 15. Rhe1 {[%clk 0:02:50]}  Bd7 {[%clk 0:01:45]} 16. h4 {[%clk 0:02:46]}  Qb4 {[%clk 0:01:40]} 17. c3 {[%clk 0:02:45]}  Qa4 {[%clk 0:01:37]} 18. a3 {[%clk 0:02:46]}  Rhf8 {[%clk 0:01:32]} 19. Qd2 {[%clk 0:02:40]}  Qb3 {[%clk 0:01:15]} 20. Qc2 {[%clk 0:02:40]}  Qa2 {[%clk 0:01:06]} 21. Qb1 {[%clk 0:02:40]}  Qb3 {[%clk 0:01:02]} 22. Nd2 {[%clk 0:02:40]}  Qb6 {[%clk 0:00:57]} 23. f3 {[%clk 0:02:40]}  Ba4 {[%clk 0:00:55]} 24. b3 {[%clk 0:02:40]}  Bb5 {[%clk 0:00:46]} 25. a4 {[%clk 0:02:40]}  Bd7 {[%clk 0:00:41]} 26. Re5 {[%clk 0:02:40]}  c5 {[%clk 0:00:37]} 27. Qb2 {[%clk 0:02:22]}  cxd4 {[%clk 0:00:35]} 28. cxd4 {[%clk 0:02:23]}  Kb8 {[%clk 0:00:33]} 29. Kb1 {[%clk 0:02:24]}  Rc8 {[%clk 0:00:31]} 30. Rc1 {[%clk 0:02:24]}  Rxc1+ {[%clk 0:00:30]} 31. Kxc1 {[%clk 0:02:25]}  Rc8+ {[%clk 0:00:28]} 32. Kb1 {[%clk 0:02:25]}  Qb4 {[%clk 0:00:26]} 33. Re1 {[%clk 0:02:24]}  Rc3 {[%clk 0:00:23]} 34. Rc1 {[%clk 0:02:24]}  Rd3 {[%clk 0:00:18]} 35. Qc2 {[%clk 0:02:18]}  Qxd2 {[%clk 0:00:09]} 36. Qc7+ {[%clk 0:02:18]}  Ka8 {[%clk 0:00:09]} 37. Qc8+ {[%clk 0:02:19]}  Bxc8 {[%clk 0:00:09]} 38. Rxc8# {[%clk 0:02:20]} 1-0


[Site "https://www.chess.com"]

[Event "Titled Tuesday Blitz June 28 Early 2022"]
[White "Hambleton, Aman"]
[Black "Przybylski, Wojciech"]
[WhiteFideId "2606577"]
[BlackFideId "1117599"]
[WhiteElo "2552"]
[BlackElo "2133"]
[Result "0-1"]
[Round "11"]
[TimeControl "180+1"]
[Date "2022.06.28"]
[WhiteClock "0:00:03"]
[BlackClock "0:00:08"]

1. d4 {[%clk 0:02:59]}  d5 {[%clk 0:02:58]} 2. Bf4 {[%clk 0:02:58]}  Nf6 {[%clk 0:02:58]} 3. e3 {[%clk 0:02:53]}  c6 {[%clk 0:02:58]} 4. c4 {[%clk 0:02:53]}  e6 {[%clk 0:02:57]} 5. Nc3 {[%clk 0:02:51]}  Be7 {[%clk 0:02:57]} 6. Nf3 {[%clk 0:02:47]}  O-O {[%clk 0:02:56]} 7. Rc1 {[%clk 0:02:43]}  Nbd7 {[%clk 0:02:56]} 8. h3 {[%clk 0:02:30]}  b6 {[%clk 0:02:55]} 9. cxd5 {[%clk 0:02:27]}  exd5 {[%clk 0:02:54]} 10. Bd3 {[%clk 0:02:23]}  Bb7 {[%clk 0:02:53]} 11. O-O {[%clk 0:02:24]}  Rc8 {[%clk 0:02:50]} 12. Qa4 {[%clk 0:02:11]}  a5 {[%clk 0:02:49]} 13. Rfd1 {[%clk 0:02:08]}  b5 {[%clk 0:02:43]} 14. Qc2 {[%clk 0:02:08]}  Nb6 {[%clk 0:02:39]} 15. Ne5 {[%clk 0:02:05]}  Nc4 {[%clk 0:02:31]} 16. b3 {[%clk 0:02:01]}  Nd6 {[%clk 0:02:22]} 17. a4 {[%clk 0:01:45]}  g6 {[%clk 0:01:30]} 18. axb5 {[%clk 0:01:20]}  cxb5 {[%clk 0:01:29]} 19. Qa2 {[%clk 0:01:20]}  Qb6 {[%clk 0:01:21]} 20. Be2 {[%clk 0:01:00]}  Rfd8 {[%clk 0:01:13]} 21. Bg5 {[%clk 0:00:54]}  Kg7 {[%clk 0:01:11]} 22. Qa1 {[%clk 0:00:34]}  h6 {[%clk 0:01:08]} 23. Bh4 {[%clk 0:00:33]}  Rc7 {[%clk 0:00:44]} 24. Bxf6+ {[%clk 0:00:26]}  Bxf6 {[%clk 0:00:43]} 25. Bf3 {[%clk 0:00:27]}  Ne4 {[%clk 0:00:38]} 26. Nxe4 {[%clk 0:00:13]}  dxe4 {[%clk 0:00:39]} 27. Be2 {[%clk 0:00:14]}  h5 {[%clk 0:00:35]} 28. Rxc7 {[%clk 0:00:12]}  Qxc7 {[%clk 0:00:35]} 29. Bxb5 {[%clk 0:00:11]}  Qc2 {[%clk 0:00:16]} 30. Rc1 {[%clk 0:00:05]}  Qd2 {[%clk 0:00:14]} 31. Qc3 {[%clk 0:00:03]}  Qxc3 {[%clk 0:00:12]} 32. Rxc3 {[%clk 0:00:04]}  Bxe5 {[%clk 0:00:12]} 33. dxe5 {[%clk 0:00:05]}  Rd5 {[%clk 0:00:11]} 34. Ba4 {[%clk 0:00:02]}  Rxe5 {[%clk 0:00:11]} 35. Rc7 {[%clk 0:00:03]}  Ba6 {[%clk 0:00:05]} 36. Ra7 {[%clk 0:00:02]}  Bd3 {[%clk 0:00:05]} 37. g4 {[%clk 0:00:02]}  hxg4 {[%clk 0:00:05]} 38. hxg4 {[%clk 0:00:02]}  Kf6 {[%clk 0:00:05]} 39. Kh2 {[%clk 0:00:03]}  Kg5 {[%clk 0:00:05]} 40. Rxf7 {[%clk 0:00:02]}  Kxg4 {[%clk 0:00:06]} 41. Bd7+ {[%clk 0:00:02]}  Kg5 {[%clk 0:00:06]} 42. Kg3 {[%clk 0:00:03]}  Rc5 {[%clk 0:00:04]} 43. Be6 {[%clk 0:00:02]}  Bc2 {[%clk 0:00:04]} 44. Re7 {[%clk 0:00:01]}  Re5 {[%clk 0:00:04]} 45. Re8 {[%clk 0:00:01]}  Kf6 {[%clk 0:00:04]} 46. Bd7 {[%clk 0:00:02]}  Rxe8 {[%clk 0:00:04]} 47. Bxe8 {[%clk 0:00:03]}  Bxb3 {[%clk 0:00:04]} 48. Kf4 {[%clk 0:00:03]}  a4 {[%clk 0:00:04]} 49. Bxa4 {[%clk 0:00:03]}  g5+ {[%clk 0:00:05]} 50. Kxe4 {[%clk 0:00:04]}  Bxa4 {[%clk 0:00:05]} 51. Kf3 {[%clk 0:00:04]}  Bc6+ {[%clk 0:00:05]} 52. Kg4 {[%clk 0:00:03]}  Bd7+ {[%clk 0:00:05]} 53. Kg3 {[%clk 0:00:04]}  Kf5 {[%clk 0:00:05]} 54. Kf3 {[%clk 0:00:02]}  Bc6+ {[%clk 0:00:05]} 55. Kg3 {[%clk 0:00:03]}  g4 {[%clk 0:00:05]} 56. Kh2 {[%clk 0:00:03]}  Bf3 {[%clk 0:00:05]} 57. Kg3 {[%clk 0:00:03]}  Kg5 {[%clk 0:00:06]} 58. Kh2 {[%clk 0:00:03]}  Kh4 {[%clk 0:00:06]} 59. Kg1 {[%clk 0:00:04]}  Kh3 {[%clk 0:00:06]} 60. Kf1 {[%clk 0:00:02]}  Kh2 {[%clk 0:00:07]} 61. e4 {[%clk 0:00:01]}  Bxe4 {[%clk 0:00:07]} 62. f4 {[%clk 0:00:02]}  gxf3 {[%clk 0:00:06]} 63. Kf2 {[%clk 0:00:02]}  Kh3 {[%clk 0:00:07]} 64. Kg1 {[%clk 0:00:02]}  Kg3 {[%clk 0:00:07]} 65. Kf1 {[%clk 0:00:02]}  Bf5 {[%clk 0:00:07]} 66. Kg1 {[%clk 0:00:02]}  f2+ {[%clk 0:00:07]} 67. Kh1 {[%clk 0:00:03]}  Be4# {[%clk 0:00:08]} 0-1


[Site "https://www.chess.com"]

[Event "Titled Tuesday Blitz June 28 Early 2022"]
[White "Dronavalli, Harika"]
[Black "Golubovskis, Maksims"]
[WhiteFideId "5015197"]
[BlackFideId "11608528"]
[WhiteElo "2382"]
[BlackElo "2102"]
[Result "1-0"]
[Round "11"]
[TimeControl "180+1"]
[Date "2022.06.28"]
[WhiteClock "0:01:54"]
[BlackClock "0:00:40"]

1. d4 {[%clk 0:03:00]}  Nf6 {[%clk 0:02:58]} 2. c4 {[%clk 0:03:00]}  e6 {[%clk 0:02:58]} 3. Nc3 {[%clk 0:03:00]}  Bb4 {[%clk 0:02:58]} 4. Nf3 {[%clk 0:02:59]}  O-O {[%clk 0:02:55]} 5. e3 {[%clk 0:02:58]}  d5 {[%clk 0:02:55]} 6. Bd2 {[%clk 0:02:58]}  b6 {[%clk 0:02:55]} 7. Rc1 {[%clk 0:02:57]}  Bb7 {[%clk 0:02:55]} 8. cxd5 {[%clk 0:02:55]}  exd5 {[%clk 0:02:54]} 9. Bd3 {[%clk 0:02:54]}  a6 {[%clk 0:02:53]} 10. Ne5 {[%clk 0:02:53]}  Nbd7 {[%clk 0:02:54]} 11. f4 {[%clk 0:02:53]}  c5 {[%clk 0:02:47]} 12. O-O {[%clk 0:02:51]}  Qe7 {[%clk 0:02:43]} 13. Be1 {[%clk 0:02:50]}  Bxc3 {[%clk 0:02:43]} 14. Bxc3 {[%clk 0:02:36]}  Nxe5 {[%clk 0:02:33]} 15. fxe5 {[%clk 0:02:28]}  Ne4 {[%clk 0:02:30]} 16. Bxe4 {[%clk 0:02:28]}  dxe4 {[%clk 0:02:31]} 17. d5 {[%clk 0:02:28]}  Rad8 {[%clk 0:02:23]} 18. d6 {[%clk 0:02:27]}  Qe6 {[%clk 0:02:13]} 19. Qh5 {[%clk 0:02:24]}  f6 {[%clk 0:01:54]} 20. exf6 {[%clk 0:02:24]}  gxf6 {[%clk 0:01:54]} 21. Bxf6 {[%clk 0:02:10]}  Rxf6 {[%clk 0:01:21]} 22. Qg5+ {[%clk 0:02:11]}  Kf7 {[%clk 0:01:22]} 23. Rxf6+ {[%clk 0:02:10]}  Qxf6 {[%clk 0:01:23]} 24. Rf1 {[%clk 0:02:10]}  Qxf1+ {[%clk 0:01:23]} 25. Kxf1 {[%clk 0:02:09]}  Rxd6 {[%clk 0:01:24]} 26. Ke1 {[%clk 0:02:05]}  h6 {[%clk 0:01:10]} 27. Qe5 {[%clk 0:02:02]}  Rd7 {[%clk 0:01:04]} 28. Qf5+ {[%clk 0:02:02]}  Ke7 {[%clk 0:00:59]} 29. Qh7+ {[%clk 0:02:02]}  Kd8 {[%clk 0:00:54]} 30. Qxh6 {[%clk 0:02:01]}  Kc7 {[%clk 0:00:55]} 31. h4 {[%clk 0:02:01]}  b5 {[%clk 0:00:49]} 32. h5 {[%clk 0:02:01]}  b4 {[%clk 0:00:50]} 33. Qf4+ {[%clk 0:01:58]}  Kb6 {[%clk 0:00:50]} 34. h6 {[%clk 0:01:58]}  c4 {[%clk 0:00:50]} 35. Qf6+ {[%clk 0:01:57]}  Kb5 {[%clk 0:00:42]} 36. h7 {[%clk 0:01:53]}  Rxh7 {[%clk 0:00:40]} 37. Qf5+ {[%clk 0:01:54]} 1-0


[Site "https://www.chess.com"]